[Event "Azerbaijan Women Championship 2022"]
[Site "Baku"]
[Date "2022.05.21"]
[Round "5.4"]
[White "Fataliyeva, Ulviyya"]
[Black "Mamedjarova, Turkan"]
[Result "0-1"]
[ECO "E04"]
[WhiteElo "2348"]
[BlackElo "2264"]
[Annotator "TA"]
[PlyCount "72"]
[EventDate "2022.05.17"]
[EventType "tourn"]
[EventCountry "AZE"]
[SourceTitle "playchess.com"]
[Source "ChessBase"]
[SourceQuality "1"]
[TimeControl "40/5400+30:1800+30"]

{[%evp 12,72,26,19,4,20,49,55,54,-92,-85,-125,-7,-34,-34,-24,0,0,0,0,0,0,15,0,4,-17,-16,-135,-136,-127,-127,-225,-206,-227,-212,-222,-204,-278,-227,-379,-237,-285,-263,-359,-325,-460,-457,-420,-420,-483,-468,-562,-560,-708,-650,-655,-607,-797,-766,-1304,-1226,-1157,-1076]} 1. d4 {[%emt 0:02:56]} d5 {[%emt 0:00:25]} 2. c4 {[%emt 0:00:21]} e6 {[%emt 0:00:06]} 3. Nf3 {[%emt 0:00:03]} Nf6 {[%emt 0:00:22]} 4. g3 {[%emt 0:00:18]} dxc4 {[%emt 0:04:53]} 5. Bg2 {[%emt 0:00:34]} c5 {[%emt 0:02:36]} 6. O-O Nc6 {[%emt 0:08:10]} 7. dxc5 {[%emt 0:00:47]} Qxd1 {[%emt 0:10:38] E04: Open Catalan: 5 Nf3.} 8. Rxd1 e5 {[%emt 0:05:05]} 9. Na3 {[%emt 0:05:52] Threatens to win with Nb5.} Be6 {[%emt 0:09:24][%cal Bc8e6,Be6d5,Bd5c6][%mdl 32] [#] White is slightly better.} 10. Nxe5 $146 {[%emt 0:15:53]} ({Predecessor:} 10. Ng5 Bg4 11. Nxc4 Bxe2 12. Nd6+ Bxd6 13. Rxd6 h6 14. Ne4 Nxe4 15. Bxe4 Rd8 16. Rxd8+ {½-½ (16) Kharitonov,A-Khalifman,A (2485) Lvov 1985}) 10... Nxe5 $17 {[%emt 0:01:54]} 11. Bxb7 {[%emt 0:02:26]} Rd8 {[%emt 0:17:26]} (11... Rb8 $17 12. c6 Bc5) 12. Be3 {[%emt 0:08:24]} Bd5 {[%emt 0:04:36]} 13. Nb5 {[%emt 0:05:01]} Bc6 {[%emt 0:04:39]} 14. Rxd8+ {[%emt 0:16:49]} Kxd8 {[%emt 0:00:10]} 15. Rd1+ {[%emt 0:00:09]} Nfd7 $1 {[%emt 0:10:20]} 16. Ba6 {[%emt 0:00:18]} Be7 {[%emt 0:07:25]} 17. h3 {[%emt 0:00:29]} (17. f4 $5 {[%cal Rf4e5]} Ng4 18. Bd4 $11) 17... g5 {[%emt 0:01:56]} 18. Bd4 {[%emt 0:08:34]} f6 {[%emt 0:01:34] next ...Bxb5 is good for Black.} 19. b3 {[%emt 0:02:21] Black keeps a firm grip on the game.} (19. f4 $11 gxf4 20. gxf4) 19... Bxb5 {[%emt 0:01:16]} 20. Bxb5 {[%emt 0:00:05] [#] Hoping for Bxe5.} Kc7 {[%emt 0:00:08]} 21. b4 {[%emt 0:04:25]} ({Don't play} 21. f4 gxf4 22. gxf4 Nc6 $19) (21. c6 $17 {was worth a try.} Nxc6 22. Bxc6 Kxc6 23. Rc1) 21... Rb8 $19 {[%emt 0:01:14]} 22. Bxd7 {[%emt 0:00:27]} Nxd7 {[%emt 0:00:10]} 23. a3 {[%emt 0:01:26]} Kc6 {[%emt 0:01:52]} 24. Rc1 {[%emt 0:02:13]} a5 {[%emt 0:01:56]} 25. Bc3 {[%emt 0:06:18]} (25. Rxc4 {is the only way for White.} Kd5 26. Rc1) 25... a4 {[%emt 0:00:42]} 26. Bd2 {[%emt 0:01:15]} Kb5 {[%emt 0:00:33]} 27. Be3 {[%emt 0:01:02]} Ne5 {[%emt 0:00:28]} 28. f4 {[%emt 0:01:41]} (28. Bd2 $142) 28... Nc6 {[%emt 0:01:46]} 29. Kf2 {[%emt 0:03:37]} Rd8 {[%emt 0:00:10]} 30. Ke1 {[%emt 0:00:18]} h6 {[%emt 0:00:41] Black is clearly winning.} 31. Bd2 {[%emt 0:00:31]} f5 {[%emt 0:01:32]} 32. g4 {[%emt 0:02:29]} fxg4 {[%emt 0:00:42]} 33. hxg4 {[%emt 0:00:02]} gxf4 {[%emt 0:00:13]} 34. Bc3 {[%emt 0:02:00]} Bg5 {[%emt 0:00:57][%cal Of4f3] [#] aiming for ...f3!} 35. Rb1 {[%emt 0:01:31]} f3 {[%emt 0:00:24]} 36. exf3 {[%emt 0:00:35]} Rd3 {[%emt 0:00:07][%csl LRc3,LRf3] Weighted Error Value: White=0.73/Black=0.19 (very precise)} 0-1

[Event "Azerbaijan Women Championship 2022"]
[Site "Baku"]
[Date "2022.05.22"]
[Round "6.1"]
[White "Mamedjarova, Turkan"]
[Black "Allahverdiyeva, Ayan"]
[Result "1-0"]
[ECO "D38"]
[WhiteElo "2264"]
[BlackElo "2120"]
[Annotator "TA"]
[PlyCount "78"]
[EventDate "2022.05.17"]
[EventType "tourn"]
[EventCountry "AZE"]
[SourceTitle "playchess.com"]
[Source "ChessBase"]
[SourceQuality "1"]
[TimeControl "40/5400+30:1800+30"]

{[%evp 17,78,0,8,0,-6,-14,0,-18,-16,-29,-25,-20,0,-25,0,-30,0,0,35,30,39,58,21,0,85,86,122,122,167,165,170,158,179,196,233,221,759,751,749,742,814,815,816,802,789,773,1029,1001,1172,1054,974,952,1206,1037,1061,1054,1087,1043,1001,1016,985,956,975]} 1. d4 {[%emt 0:00:19]} Nf6 {[%emt 0:07:08]} 2. c4 {[%emt 0:00:26]} e6 {[%emt 0:02:57]} 3. Nf3 {[%emt 0:01:13]} d5 {[%emt 0:00:52]} 4. Nc3 {[%emt 0:00:27]} Bb4 {[%emt 0:00:03]} 5. cxd5 {[%emt 0:02:29]} exd5 {[%emt 0:00:14]} 6. Bg5 {[%emt 0:01:02]} h6 {[%emt 0:04:38]} 7. Qa4+ {[%emt 0:15:29]} Nc6 {[%emt 0:00:05]} 8. Bxf6 {[%emt 0:06:15]} Qxf6 {[%emt 0:00:01]} 9. e3 {[%emt 0:00:27]} O-O {[%emt 0:02:52]} 10. a3 {[%emt 0:10:31] D38: Queen's Gambit Declined: Ragozin Defence (4 Nf3 Bb4).} Bxc3+ {[%emt 0:01:54]} 11. bxc3 {[%emt 0:00:02]} Qg6 {[%emt 0:08:30]} 12. Qb3 {[%emt 0:08:43] The position is equal.} Rd8 {[%emt 0:00:23] [#]} 13. h4 $146 {[%emt 0:03:25]} ({Predecessor:} 13. Rc1 a6 14. Qb1 Bf5 15. Qxb7 Ra7 16. Qb3 Rb8 17. Qd1 Be4 18. Nd2 Na5 19. Nxe4 Qxe4 {½-½ (59) Charkhalashvili,I (2379)-Cornette,D (2406) Konya 2016}) 13... Na5 {[%emt 0:04:16]} 14. Qb4 {[%emt 0:04:05]} Nc6 {[%emt 0:18:52]} (14... b6 {with more complications.} 15. Ne5 Qe6 16. Qb1 c5) 15. Qb2 {[%emt 0:01:55]} Bf5 {[%emt 0:01:46]} 16. Be2 {[%emt 0:06:23]} (16. h5 $5 {[%cal Rh5g6]} Qd6 17. c4 $11) 16... Re8 {[%emt 0:02:39]} (16... Qxg2 $2 17. Rg1 Qh3 18. Rg3 $18 (18. Qxb7 Ne7 $11)) 17. h5 {[%emt 0:09:01]} Qf6 {[%emt 0:00:00]} 18. Qxb7 {[%emt 0:03:30]} Rab8 {[%emt 0:17:49]} 19. Qxc7 {[%emt 0:00:32]} Rb2 {[%emt 0:00:01]} 20. Rd1 {[%emt 0:14:53]} Reb8 {[%emt 0:15:44]} (20... Rc8 $1 $11 21. Qf4 Na5) 21. Qf4 $16 {[%emt 0:04:09] Black is now going downhill.} Qe6 {[%emt 0:03:47]} 22. Nh4 {[%emt 0:01:17][%cal Bf3h4,Bh4f5,Bf5e7,Be7c6,Bc6b4][%mdl 32]} Be4 {[%emt 0:04:45]} 23. Bg4 Qe7 24. Nf5 {[%emt 0:01:46]} Qxa3 {[%emt 0:01:30]} 25. O-O {[%emt 0:00:22]} Rd8 {[%emt 0:00:56]} 26. Qc7 {[%emt 0:01:00]} Qa6 {[%emt 0:00:18] [#]} (26... Bxf5 27. Bxf5 Qd6 28. Qxd6 Rxd6) 27. Ne7+ $18 {[%emt 0:00:29] White is clearly winning.} Kh7 {[%emt 0:00:23]} 28. Nxc6 {[%emt 0:00:51]} Re8 {[%emt 0:00:05]} 29. Nb4 {[%emt 0:00:12]} Qf6 {[%emt 0:00:41]} 30. Ra1 {[%emt 0:00:35]} Re7 {[%emt 0:01:30]} 31. Qf4 {[%emt 0:00:11]} Qb6 {[%emt 0:00:23]} 32. Bf5+ {[%emt 0:00:51]} Bxf5 {[%emt 0:00:13]} 33. Qxf5+ {[%emt 0:00:24]} g6 {[%emt 0:00:06]} 34. hxg6+ {[%emt 0:00:25]} fxg6 {[%emt 0:00:01]} 35. Qxd5 {[%emt 0:00:06]} Qf6 36. Ra6 {[%emt 0:00:56]} Qg7 {[%emt 0:00:56]} 37. Ra2 {[%emt 0:00:35]} Rxa2 {[%emt 0:00:55]} 38. Qxa2 {[%emt 0:00:17]} h5 {[%emt 0:00:32]} 39. Qd5 {[%emt 0:00:09]} h4 {[%emt 0:00:09] Weighted Error Value: White=0.09 (flawless) /Black=0.31} 1-0

[Event "Azerbaijan Women Championship 2022"]
[Site "Baku"]
[Date "2022.05.22"]
[Round "6.2"]
[White "Mammadova, Gulnar"]
[Black "Abdulla, Khayala"]
[Result "1-0"]
[ECO "A48"]
[WhiteElo "2387"]
[BlackElo "2219"]
[Annotator "TA"]
[PlyCount "173"]
[EventDate "2022.05.17"]
[EventType "tourn"]
[EventCountry "AZE"]
[SourceTitle "playchess.com"]
[Source "ChessBase"]
[SourceQuality "1"]
[TimeControl "40/5400+30:1800+30"]

{[%evp 11,173,-17,-14,-20,-19,-45,-49,-53,-29,-43,-11,-26,0,-6,3,-16,19,11,20,18,28,28,12,9,21,20,20,19,27,7,11,15,9,7,10,5,16,0,21,20,55,6,83,32,34,29,33,39,40,18,21,10,63,45,72,33,45,60,81,68,120,123,122,128,170,152,193,189,181,177,225,184,217,210,163,68,111,61,68,68,230,144,144,144,124,0,0,-31,0,0,0,-31,-31,-58,-31,-35,0,0,0,-31,-31,-118,-103,-170,-170,-163,-166,-158,-103,-103,-100,-103,0,0,0,0,0,0,0,0,0,0,0,-8,56,56,372,372,29941,29954,12784,12660,12267,9607,29971,29972,29972,29973,29973,29974,29974,29975,29975,29976,29976,29977,29977,29978,29978,29979,29979,29980,29981,29980,29980,29980,29981,29982,29982,29983,29986,29987,29986,29986]} 1. d4 {[%emt 0:00:03]} Nf6 {[%emt 0:00:08]} 2. Nf3 {[%emt 0:00:07]} g6 {[%emt 0:04:08]} 3. Nc3 {[%emt 0:03:03]} d5 {[%emt 0:00:10]} 4. Bf4 {[%emt 0:00:41]} Bg7 {[%emt 0:00:40]} 5. h3 {[%emt 0:00:28]} O-O {[%emt 0:01:09]} 6. e3 {[%emt 0:00:30]} c5 {[%emt 0:02:02]} 7. Nb5 {[%emt 0:03:48] D00: 1 d4 d5: Unusual lines.} Nc6 {[%emt 0:15:59]} 8. c3 {[%emt 0:11:58]} a6 {[%emt 0:02:32]} 9. Na3 {[%emt 0:06:38] [#] Black is slightly better.} b5 $146 {[%emt 0:03:32]} ({Predecessor:} 9... Qb6 10. Rb1 Re8 11. Bd3 Ne4 12. Bxe4 dxe4 13. Nd2 cxd4 14. exd4 f5 15. O-O Be6 {1-0 (30) Bates,C (1900)-Colson,A (2148) Metz 2005}) 10. Be2 {[%emt 0:01:00]} b4 {[%emt 0:05:34]} 11. cxb4 {[%emt 0:03:47]} cxb4 {[%emt 0:06:14]} 12. Nb1 {[%emt 0:00:19]} a5 {[%emt 0:02:47]} 13. Nbd2 {[%emt 0:00:45]} Ba6 {[%emt 0:02:25]} 14. Rc1 {[%emt 0:04:09]} Bxe2 {[%emt 0:03:53]} 15. Qxe2 {[%emt 0:00:09]} Qb6 {[%emt 0:00:05]} 16. O-O {[%emt 0:01:13]} a4 {[%emt 0:02:23]} 17. Rc5 {[%emt 0:03:18]} Rac8 {[%emt 0:15:53]} 18. Qb5 {[%emt 0:04:36]} Qxb5 {[%emt 0:00:54]} 19. Rxb5 {[%emt 0:00:11]} Rfd8 {[%emt 0:00:39]} 20. Ne5 {[%emt 0:06:42]} Nxe5 {[%emt 0:12:21]} 21. dxe5 {[%emt 0:00:10]} Nd7 {[%emt 0:00:02]} 22. Nf3 {[%emt 0:02:46]} (22. Rxd5 Nxe5 $1 23. Rxd8+ Rxd8 24. Bxe5 Rxd2 25. Bxg7 Kxg7 $17) 22... e6 {[%emt 0:04:21]} 23. Rxb4 {[%emt 0:00:42]} Nc5 {[%emt 0:01:14]} 24. Rd4 {[%emt 0:06:48]} Rb8 {[%emt 0:01:00]} 25. Rc1 {[%emt 0:01:13]} Bf8 {[%emt 0:01:31] [#]} 26. Rc2 {[%emt 0:03:36]} (26. Bh6 $1 $14 Rdc8 (26... Ne4 27. Bxf8) 27. Bxf8 Kxf8 28. Rd2) 26... Rd7 {[%emt 0:00:47] [#]} (26... Rdc8 $11 {keeps the balance.}) 27. Rdd2 {[%emt 0:01:49]} (27. Bh6 $1 $16 {[%cal Rh6f8] Strongly threatening Bxf8.} Bxh6 (27... Be7 28. Rdd2) 28. Rxc5) 27... Rdb7 $14 {[%emt 0:00:20]} 28. Nd4 {[%emt 0:03:19]} Rb6 {[%emt 0:00:42]} 29. f3 {[%emt 0:02:28][%cal Bf2f3,Bf3f4][%mdl 32]} Kg7 {[%emt 0:00:26]} 30. h4 {[%emt 0:04:08]} h6 {[%emt 0:00:23]} 31. g4 {[%emt 0:01:13]} Be7 {[%emt 0:03:47]} (31... Nb7 $11) 32. Bg3 {[%emt 0:02:18]} R8b7 {[%emt 0:01:11]} 33. Bf2 {[%emt 0:04:52]} Nd7 {[%emt 0:00:41]} 34. f4 {[%emt 0:01:24]} Bb4 {[%emt 0:03:21]} 35. Re2 {[%emt 0:02:44]} g5 {[%emt 0:01:16]} (35... Bc5 $14) 36. hxg5 {[%emt 0:01:42]} hxg5 {[%emt 0:00:02]} 37. Nf3 {[%emt 0:01:06] White is more active.} Be7 {[%emt 0:01:19]} 38. f5 $1 {[%emt 0:02:05]} exf5 {[%emt 0:00:23]} 39. gxf5 {[%emt 0:00:45]} f6 {[%emt 0:00:25]} 40. e6 {[%emt 0:00:00]} ({Don't play} 40. e4 dxe4 41. Nxg5 (41. Rxe4 Rxb2 42. Rxb2 Rxb2 $14) (41. Bxb6 exf3 42. Red2 Nxb6 $11) 41... Rb5 $16) 40... Nc5 {[%emt 0:00:00]} (40... Ne5 $142 41. Nd4 Bd6) 41. Be1 {[%emt 0:15:49]} Ne4 {[%emt 0:05:12]} 42. Nd4 {[%emt 0:02:42] Against Rb5} Bd6 {[%emt 0:01:33]} 43. b3 {[%emt 0:03:57]} (43. a3 $1 $18) 43... axb3 {[%emt 0:04:23]} 44. Nxb3 {[%emt 0:01:43]} (44. axb3 $16 Bc5 45. Kg2) 44... Rb8 {[%emt 0:03:35]} 45. Nd2 {[%emt 0:02:20] Black must now prevent Nxe4.} Rb5 $2 {[%emt 0:04:47]} (45... Rb4 $14) 46. Nxe4 {[%emt 0:04:54]} dxe4 {[%emt 0:00:06]} 47. Red2 {[%emt 0:00:07]} R8b6 {[%emt 0:03:20] [#]} 48. Rc8 {[%emt 0:03:11]} (48. Bg3 $1 $16 {[%mdl 512]} Bxg3 49. Rd7+ Kh6 50. e7) 48... Rxf5 $11 {[%emt 0:04:25]} 49. Bg3 {[%emt 0:04:32] Inhibits Re5.} Be7 {[%emt 0:02:40]} ({Much less strong is} 49... Bxg3 50. e7 Re5 51. e8=Q Rxe8 52. Rxe8 $14) (49... Rc5 $5 {[%cal Rc5c8]} 50. Ra8 Be7 $17) 50. Rc7 {[%emt 0:00:19]} Rxe6 {[%emt 0:05:02] aiming for ...Kg6.} 51. Rdd7 {[%emt 0:00:02]} (51. Bd6 $5 Kf8 52. Rc8+ Kf7 53. Rc7 $11) 51... Kf8 {[%emt 0:01:39]} 52. Be1 {[%emt 0:03:02]} Ke8 {[%emt 0:00:50]} 53. a4 $1 {[%emt 0:00:09]} Bd8 {[%emt 0:00:28]} 54. Rb7 {[%emt 0:00:16][%cal Oa4a5]} Rc5 {[%emt 0:01:32] Prevents a5.} 55. Rh7 {[%emt 0:01:27][%cal Rh7h8]} (55. a5 $5 Rcc6 56. Bb4 Rc1+ 57. Kh2 $11) 55... Re7 {[%emt 0:00:29]} 56. Rh8+ {[%emt 0:01:26]} ({Better is} 56. Rhxe7+ $1 $15 Bxe7 57. Bb4 Rc1+ 58. Kf2) 56... Kf7 $17 {[%emt 0:00:03]} 57. Rb1 {[%emt 0:00:30]} (57. Rb4 $17 {was necessary.} Rc1 58. Kf2 Rxe1 59. Kxe1) 57... Rd7 $19 {[%emt 0:00:42]} 58. Bb4 {[%emt 0:01:15]} Rcd5 {[%emt 0:00:35]} 59. Kf2 {[%emt 0:00:26]} Ke6 {[%emt 0:00:56]} ({Black should try} 59... Rc7 {And now ...Rc2+ would win.} 60. Rh7+ Ke6 61. Rxc7 Bxc7) 60. Re8+ $17 {[%emt 0:00:35]} Kf5 {[%emt 0:00:12]} 61. Ke2 {[%emt 0:00:06]} Re5 {[%emt 0:01:06]} (61... Ra7 $17 62. Ra1 Ra6) 62. Rf1+ $11 {[%emt 0:00:09]} Kg6 {[%emt 0:00:13]} 63. Rxe5 {[%emt 0:00:16]} fxe5 {[%emt 0:00:02][%mdl 4096] Endgame KRB-KRB} 64. a5 {[%emt 0:00:31]} Ra7 {[%emt 0:00:59]} 65. Ra1 {[%emt 0:00:25]} g4 {[%emt 0:00:34]} 66. a6 {[%emt 0:00:42]} Bb6 {[%emt 0:00:12] Inhibits Bc5.} 67. Bd6 {[%emt 0:00:49]} Rd7 {[%emt 0:00:47]} ({Black should play} 67... Kf5 $11) 68. Bxe5 $14 {[%emt 0:00:26][%cal Oe5d4] Bd4! is the strong threat.} ({But not} 68. Bb8 Rd3 $11) 68... Ba7 $2 {[%emt 0:00:35][%mdl 8192] Inhibits Bd4.} (68... Ra7 $14) 69. Bd4 $1 $18 {[%emt 0:01:03] Threatening mate with Bxa7.} Kg5 $2 {[%emt 0:00:24]} (69... Rh7 $18) 70. Bxa7 {[%emt 0:00:46]} Rxa7 {[%emt 0:00:01] KR-KR} 71. Kf2 {[%emt 0:00:09] White wants to mate with Kg3.} Kh4 {[%emt 0:00:56]} 72. Kg2 {[%emt 0:00:17]} Ra8 {[%emt 0:00:47]} 73. a7 {[%emt 0:00:05] White mates.} g3 {[%emt 0:00:29]} 74. Ra4 {[%emt 0:00:09]} Kg4 {[%emt 0:00:39]} 75. Rxe4+ {[%emt 0:00:08]} Kf5 {[%emt 0:00:07]} 76. Ra4 {[%emt 0:00:09]} Ke5 {[%emt 0:00:32]} 77. Kxg3 {[%emt 0:00:10]} Rg8+ {[%emt 0:00:27]} 78. Kf3 {[%emt 0:00:04]} Rf8+ {[%emt 0:00:03]} 79. Ke2 {[%emt 0:00:04]} Ra8 {[%emt 0:00:04]} 80. Kd3 {[%emt 0:00:18]} Kd5 {[%emt 0:00:29]} 81. e4+ {[%emt 0:00:34][%cal Be3e4,Be4e5,Be5e6][%mdl 32]} Kc5 {[%emt 0:00:16]} 82. Ke3 {[%emt 0:00:17]} Kb5 {[%emt 0:00:20]} 83. Ra1 {[%emt 0:00:07]} Kb6 {[%emt 0:00:03]} 84. e5 {[%emt 0:00:31]} Kc7 {[%emt 0:00:53]} 85. Ke4 {[%emt 0:00:16]} Kd7 {[%emt 0:00:21]} 86. Kd5 {[%emt 0:00:11]} Kc7 {[%emt 0:00:27]} 87. e6 {[%emt 0:00:11] Both players deserved the win here.  Weighted Error Value: White=0.20 (precise) /Black=0.21 (precise)} 1-0

[Event "Azerbaijan Women Championship 2022"]
[Site "Baku"]
[Date "2022.05.22"]
[Round "6.3"]
[White "Beydullayeva, Govhar"]
[Black "Balajayeva, Khanim"]
[Result "1/2-1/2"]
[ECO "E17"]
[WhiteElo "2384"]
[BlackElo "2376"]
[Annotator "TA"]
[PlyCount "112"]
[EventDate "2022.05.17"]
[EventType "tourn"]
[EventCountry "AZE"]
[SourceTitle "playchess.com"]
[Source "ChessBase"]
[SourceQuality "1"]
[TimeControl "40/5400+30:1800+30"]

{[%evp 23,112,0,0,0,11,4,4,13,7,20,23,14,15,14,35,22,29,25,32,25,33,20,344,350,343,254,230,227,227,148,159,150,153,157,147,91,170,181,381,381,379,381,363,375,339,0,0,0,0,0,0,0,0,-33,-33,-33,-33,-32,-41,-44,-44,-44,-39,-47,-52,-45,-48,-129,-127,-128,-8,-8,-8,-8,-8,-8,-8,-119,-60,-60,-60,-80,0,0,0,-78,-78,-78,0,0,0]} 1. d4 {[%emt 0:00:04]} Nf6 {[%emt 0:00:06]} 2. c4 {[%emt 0:00:09]} e6 {[%emt 0:00:03]} 3. Nf3 {[%emt 0:00:07][%cal Bg1f3,Bf3h4,Bh4f5,Bf5e3,Be3d5][%mdl 32]} b6 {[%emt 0:00:03]} 4. g3 {[%emt 0:00:12]} Bb7 {[%emt 0:00:12]} 5. Bg2 {[%emt 0:00:09]} Be7 {[%emt 0:00:12]} 6. O-O {[%emt 0:00:08]} O-O {[%emt 0:00:04]} 7. d5 {[%emt 0:00:35]} exd5 {[%emt 0:01:01]} 8. Nh4 {[%emt 0:00:07]} c6 {[%emt 0:01:15]} 9. cxd5 {[%emt 0:01:02]} Nxd5 {[%emt 0:03:31]} 10. Nf5 {[%emt 0:00:05]} Nc7 {[%emt 0:00:10]} 11. e4 {[%emt 0:00:27]} d5 {[%emt 0:00:22]} 12. Nc3 {[%emt 0:00:20]} Bf6 {[%emt 0:00:44]} 13. exd5 {[%emt 0:00:20] E17: Queen's Indian: 4 g3 Bb7 5 Bg2 Be7.} Nxd5 {[%emt 0:00:07]} 14. Nxd5 {[%emt 0:00:17]} cxd5 {[%emt 0:00:04]} 15. Ne3 {[%emt 0:00:12][%cal Re3d5]} Nc6 {[%emt 0:00:59]} 16. Nxd5 {[%emt 0:00:25]} Be5 {[%emt 0:00:04]} 17. Qg4 {[%emt 0:05:34]} Re8 {[%emt 0:02:07]} 18. Be3 {[%emt 0:03:25] Against Nd4} Bxb2 {[%emt 0:32:52] Hoping for ...Ne5.} (18... Qc8 $5 {[%cal Rc8g4]} 19. Qa4 Bxb2 $11) 19. Rad1 {[%emt 0:00:29][%cal Od5b6] Threatens to win with Nxb6!} Qc8 $1 {[%emt 0:00:59]} (19... Ne5 $2 20. Qb4 $18) 20. Qh4 {[%emt 0:01:26]} h6 {[%emt 0:09:55] [#]} 21. Bh3 $146 {[%emt 0:05:12]} ({Predecessor:} 21. Rfe1 Qb8 22. Re2 Be5 23. Red2 Re6 24. f4 Bf6 25. Qg4 Qc8 26. Qf3 Na5 27. f5 {1-0 (52) Sirotkin,E (1865)-Ederer,K (1930) LSS email 2018}) 21... Qd8 {[%emt 0:04:23][%cal Oc6d4] Strongly threatening ...Nd4!} 22. Qa4 {[%emt 0:03:05] Against Nd4} Na5 $2 {[%emt 0:24:23][%mdl 8192] [#]} (22... Rb8 $11) 23. Nxb6 $1 $18 {[%emt 0:23:57][%mdl 512]} Qf6 {[%emt 0:02:44]} 24. Nd5 {[%emt 0:02:37]} Bxd5 {[%emt 0:03:32]} 25. Rxd5 {[%emt 0:00:11]} Nc6 {[%emt 0:01:51]} 26. Bd7 {[%emt 0:12:05]} Ne7 {[%emt 0:00:54]} 27. Rd2 {[%emt 0:03:16] 0x0.001de029940adp-1022s more active pieces.} Red8 {[%emt 0:02:48]} 28. Rfd1 $1 {[%emt 0:00:13]} Ng6 {[%emt 0:00:55][%cal Og6e5]} 29. Qc6 {[%emt 0:08:14]} (29. Rd6 $142 Qc3 30. R6d5) 29... Ne7 {[%emt 0:03:26]} (29... Be5 $16 {keeps fighting.}) 30. Qc2 {[%emt 0:03:32]} Be5 {[%emt 0:03:10]} (30... Rab8 {was worth a try.} 31. Bxa7 Ra8) 31. f4 {[%emt 0:00:42]} Bb8 {[%emt 0:00:54]} 32. Bd4 {[%emt 0:13:54] A strong pair of Bishops.} Qa6 {[%emt 0:00:27]} 33. Qe4 {[%emt 0:02:30]} Bd6 {[%emt 0:00:06] [#]} 34. Bxg7 $2 {[%emt 0:00:33]} Rxd7 $11 {[%emt 0:00:13]} 35. Qxa8+ {[%emt 0:02:19]} Kxg7 {[%emt 0:00:02]} 36. Qe4 {[%emt 0:00:31]} Bc5+ {[%emt 0:00:32]} 37. Kg2 {[%emt 0:00:11]} Qb7 {[%emt 0:00:25]} 38. Kf3 {[%emt 0:01:20] Dancing on a razor blade.} Qxe4+ {[%emt 0:00:44]} 39. Kxe4 {[%emt 0:00:04]} Rb7 {[%emt 0:01:01]} 40. Rc2 {[%emt 0:00:00]} Rb4+ {[%emt 0:00:00]} 41. Kf3 {[%emt 0:01:46]} Bb6 {[%emt 0:03:31]} 42. Kg4 {[%emt 0:03:59]} Rb5 {[%emt 0:01:18] White must now prevent ...Nd5.} 43. Rd7 {[%emt 0:02:23]} Nd5 {[%emt 0:02:45]} 44. Kf3 {[%emt 0:01:01]} Ra5 {[%emt 0:00:12]} 45. Re2 {[%emt 0:03:12]} (45. Rb2 $15) 45... Ra3+ $17 {[%emt 0:01:00]} 46. Kg2 {[%emt 0:00:03]} Rd3 {[%emt 0:03:19]} ({Black should try} 46... Ne3+ $17 47. Kf2 h5) 47. Ree7 $1 $132 {[%emt 0:02:25][%mdl 2048] White is fighting back} Rd2+ {[%emt 0:03:38]} 48. Kh3 {[%emt 0:00:05]} Bg1 {[%emt 0:07:07]} 49. Rxf7+ {[%emt 0:01:59]} Kg6 {[%emt 0:00:05]} 50. f5+ {[%emt 0:15:35] [#]} (50. g4 $11) 50... Kg5 {[%emt 0:01:22]} (50... Kh5 $1 $17 {[%csl Gg1][%cal Rd2h2]} 51. g4+ Kg5 52. Rxd5 (52. Rg7+ $2 {leads to mate.} Kf4 53. Rh7 Rxh2#) 52... Rxd5 53. Rg7+ Kf4) 51. Rg7+ $1 $15 {[%emt 0:00:07]} Kxf5 {[%emt 0:00:05][%csl Gg1][%cal Rd2h2]} 52. Rgf7+ {[%emt 0:00:02]} Ke6 {[%emt 0:01:04]} 53. Rfe7+ $1 {[%emt 0:00:18]} Kf5 {[%emt 0:01:05][%csl Gg1][%cal Rd2h2]} 54. Rf7+ $1 {[%emt 0:00:20]} Ke4 {[%emt 0:00:45]} 55. Rfe7+ {[%emt 0:00:05] [#]} Kf5 {[%emt 0:02:34]} ({But not} 55... Nxe7 $6 56. Rxd2 Bd4 57. Rc2 $11 (57. Re2+ Be3 $11)) ({Better is} 55... Kf3 $1 $17 {[%csl Gg1][%cal Rd2h2]} 56. Rf7+ Ke3) 56. Rf7+ $1 $11 Ke5 {Black escapes into a draw.  Weighted Error Value: White=0.20 (precise) /Black=0.31} 1/2-1/2